bitfinex/quotes_SOLUSD_20241031
["timestamp","ask_amount","ask_price","bid_price","bid_amount"]
[1730344259934,16.6481,176.09,176.03,11.17319833]
[1730344260129,11.17319833,176.08,176.03,11.17319833]
[1730344260626,6.5518,176.11,176.07,11.17319833]
[1730344261452,11.17319833,176.08,176.04,19.8818]
[1730344261650,11.17319833,176.09,176.04,31.05499833]
[1730344262755,11.17319833,176.1,176.05,11.17319833]
[1730344265340,11.17319833,176.1,176.06,5.6798]
[1730344267042,11.17319833,176.09,176.04,11.17319833]
[1730344267355,11.17319833,176.09,176.03,11.17319833]
[1730344268566,11.17319833,176.09,176.04,31.05499833]
[1730344269846,11.17319833,176.08,176.04,19.8818]
[1730344270358,11.17319833,176.07,176.04,19.8818]
[1730344270556,11.17319833,176.06,176.03,5.6807]
[1730344270747,11.17319833,176.05,176.03,5.6807]
[1730344271655,11.17319833,176.05,176.01,14.2036]
[1730344271965,11.17319833,176.03,176.01,14.2036]
[1730344272565,5.6799,176.06,176.01,19.885]
[1730344272736,11.17319833,176.05,176.01,19.885]
[1730344273544,11.17319833,176.06,176.01,31.05819833]
[1730344275763,11.17319833,176.07,176.01,31.05819833]
[1730344278170,15.4866,176.08,176.04,11.17319833]
[1730344278467,15.4866,176.08,176.03,11.17319833]
[1730344278648,26.65979833,176.08,176.03,11.17319833]
[1730344278971,11.17319833,176.07,176.02,11.17319833]
[1730344279663,11.17319833,176.07,176.03,19.8829]
[1730344281569,11.17319833,176.06,176.03,14.2021]
[1730344281749,11.17319833,176.05,176.03,14.2021]
[1730344282145,11.17319833,176.06,176.03,14.2021]
[1730344283245,11.17319833,176.05,176.03,14.2021]
[1730344283441,11.17319833,176.04,176.0,28.408]
[1730344283666,11.17319833,176.04,176.0,48.2943]
[1730344284247,11.17319833,176.02,176.0,19.8863]
[1730344285772,11.17319833,176.02,176.0,14.2045]
[1730344287469,11.17319833,176.01,175.98,5.6824]
[1730344287772,11.17319833,175.99,175.97,19.8896]
[1730344289071,11.17319833,175.99,175.97,14.2069]
[1730344289458,15.5207,176.02,175.97,14.2069]
[1730344289663,11.17319833,176.02,175.98,11.17319833]
[1730344291863,11.17319833,176.02,175.99,5.6821]
[1730344294985,6.0611,176.04,175.99,31.06059833]
[1730344295275,11.17319833,176.04,175.99,31.06059833]
[1730344297555,15.3838,176.06,175.99,31.06059833]
[1730344297774,81.17319833,176.07,176.02,11.17319833]
[1730344298380,11.17319833,176.06,176.01,11.17319833]
[1730344299078,11.17319833,176.06,175.99,19.8874]
[1730344299079,11.17319833,176.07,176.02,16.85429833]
[1730344299878,11.17319833,176.09,176.04,11.17319833]
[1730344300958,11.17319833,176.09,176.05,19.8807]
[1730344306385,11.17319833,176.08,176.05,19.8807]
[1730344308290,11.17319833,176.08,176.04,11.17319833]
[1730344309370,11.17319833,176.09,176.04,11.17319833]
[1730344309569,11.17319833,176.09,176.05,5.6802]
[1730344309965,11.17319833,176.09,176.05,19.8807]
[1730344310168,22.0535,176.1,176.05,19.8807]
[1730344310382,11.17319833,176.09,176.05,19.8807]
[1730344313383,11.17319833,176.08,176.05,19.8807]
[1730344313885,11.17319833,176.11,176.06,11.17319833]
[1730344314067,11.17319833,176.11,176.05,19.8807]
[1730344314068,17.39219833,176.12,176.07,11.17319833]
[1730344314876,11.17319833,176.11,176.06,11.17319833]
[1730344315472,11.17319833,176.1,176.07,5.6795]
[1730344317904,11.17319833,176.09,176.05,11.17319833]
[1730344318192,11.17319833,176.1,176.05,11.17319833]
[1730344319295,11.17319833,176.1,176.06,25.37289833]
[1730344320482,11.17319833,176.1,176.06,31.05269833]
[1730344320986,11.17319833,176.1,176.06,19.8795]
[1730344321197,11.17319833,176.07,176.06,14.1997]
[1730344321393,11.17319833,176.08,176.06,19.8795]
[1730344322400,11.17319833,176.08,176.06,14.1997]
[1730344324624,11.17319833,176.09,176.06,14.1997]
[1730344329698,11.17319833,176.1,176.06,14.1997]
[1730344329900,17.39219833,176.12,176.07,11.17319833]
[1730344330106,11.17319833,176.11,176.07,11.17319833]
[1730344330979,11.17319833,176.11,176.06,11.17319833]
[1730344334307,11.17319833,176.1,176.06,11.17319833]
[1730344334507,11.17319833,176.1,176.07,19.8783]
[1730344335106,11.17319833,176.12,176.08,11.17319833]
[1730344335286,81.17319833,176.13,176.08,11.17319833]
[1730344335482,11.17319833,176.14,176.09,11.17319833]
[1730344336202,15.8967,176.15,176.1,11.17319833]
[1730344336411,6.1805,176.16,176.12,11.17319833]
[1730344336583,17.35369833,176.16,176.12,11.17319833]
[1730344337479,17.35369833,176.16,176.12,16.85089833]
[1730344337689,17.35369833,176.16,176.12,5.6777]
[1730344338312,11.17319833,176.14,176.12,5.6777]
[1730344338488,11.17319833,176.14,176.11,14.1952]
[1730344340183,11.17319833,176.12,176.11,14.1952]
[1730344340383,11.17319833,176.13,176.11,14.1952]
[1730344343713,11.17319833,176.14,176.11,14.1952]
[1730344344209,11.17319833,176.15,176.11,25.36839833]
[1730344344507,11.17319833,176.16,176.11,25.36839833]
[1730344345291,11.17319833,176.16,176.11,31.04659833]
[1730344347613,11.17319833,176.15,176.11,19.8734]
[1730344348903,11.17319833,176.15,176.06,0.1]
[1730344348904,11.17319833,176.14,176.08,11.17319833]
[1730344349084,11.17319833,176.13,176.08,11.17319833]
[1730344349489,70.0,176.15,176.09,11.17319833]
[1730344349691,11.17319833,176.14,176.09,11.17319833]
[1730344350126,11.17319833,176.16,176.11,11.17319833]
[1730344350414,11.17319833,176.18,176.13,11.17319833]
[1730344350800,17.53639833,176.19,176.13,11.17319833]
[1730344351013,6.3632,176.19,176.13,11.17319833]
[1730344351210,17.53639833,176.19,176.13,11.17319833]
[1730344351414,16.6286,176.2,176.15,11.17319833]
[1730344351714,27.80179833,176.2,176.15,11.17319833]
[1730344352399,27.80179833,176.2,176.16,5.6766]
[1730344352605,11.17319833,176.21,176.16,16.84979833]
[1730344352912,11.17319833,176.21,176.16,31.04139833]
[1730344353216,81.17319833,176.22,176.17,11.17319833]
[1730344353510,11.17319833,176.21,176.16,31.04139833]
[1730344353713,70.0,176.22,176.18,11.17319833]
[1730344354216,11.17319833,176.21,176.16,31.04139833]
[1730344354418,81.17319833,176.22,176.17,11.17319833]
[1730344356188,81.17319833,176.22,176.18,5.676]
[1730344356392,11.17319833,176.22,176.18,5.676]
[1730344357716,16.97545385,176.23,176.18,11.17319833]
[1730344358691,5.80225552,176.23,176.18,11.17319833]
[1730344358901,16.97545385,176.23,176.18,11.17319833]
[1730344360195,11.17319833,176.21,176.13,43.776884]
[1730344360393,11.17319833,176.2,176.15,11.17319833]
[1730344361422,16.97545385,176.23,176.18,11.17319833]
[1730344361618,11.17319833,176.22,176.17,11.17319833]
[1730344362107,11.17319833,176.21,176.16,25.36479833]
[1730344362505,11.17319833,176.22,176.17,11.17319833]
[1730344362904,11.17319833,176.22,176.18,19.866]
[1730344363103,11.17319833,176.21,176.18,19.866]
[1730344364320,11.17319833,176.21,176.18,14.19]
[1730344364622,11.17319833,176.2,176.15,19.8693]
[1730344364800,11.17319833,176.2,176.15,31.04249833]
[1730344367626,11.17319833,176.19,176.15,19.8693]
[1730344367802,11.17319833,176.17,176.15,19.8693]
[1730344368199,11.17319833,176.18,176.15,19.8693]
[1730344368513,11.17319833,176.19,176.15,19.8693]
[1730344368709,11.17319833,176.2,176.15,31.04249833]
[1730344368906,86.84799833,176.22,176.15,19.8693]
[1730344369117,11.17319833,176.18,176.12,14.1946]
[1730344369409,11.17319833,176.2,176.15,11.17319833]
[1730344369610,11.17319833,176.21,176.15,11.17319833]
[1730344369812,11.17319833,176.21,176.16,19.8682]
[1730344371417,11.17319833,176.2,176.16,19.8682]
[1730344380426,11.17319833,176.21,176.16,11.17319833]
[1730344381613,11.17319833,176.21,176.17,19.8671]
[1730344381807,11.17319833,176.22,176.17,31.04029833]
[1730344382202,11.17319833,176.21,176.17,19.8671]
[1730344382604,11.17319833,176.21,176.17,14.1908]
[1730344382818,11.17319833,176.2,176.17,14.1908]
[1730344386725,11.17319833,176.21,176.17,14.1908]
[1730344387521,11.17319833,176.22,176.17,14.1908]
[1730344387827,11.17319833,176.22,176.17,25.36399833]
[1730344388008,11.17319833,176.22,176.17,14.1908]
[1730344388405,11.17319833,176.21,176.17,14.1908]
[1730344388612,11.17319833,176.21,176.17,19.8671]
[1730344389929,11.17319833,176.21,176.15,11.17319833]
[1730344391710,11.17319833,176.18,176.13,11.17319833]
[1730344391911,11.17319833,176.18,176.12,31.17319833]
[1730344392115,11.17319833,176.18,176.13,19.8716]
[1730344392426,11.17319833,176.18,176.13,31.04479833]
[1730344393610,11.17319833,176.17,176.13,19.8716]
[1730344393818,11.17319833,176.15,176.13,14.194]
[1730344394217,11.17319833,176.16,176.13,14.194]
[1730344396732,11.17319833,176.2,176.15,11.17319833]
[1730344397032,11.17319833,176.21,176.16,11.17319833]
[1730344397229,11.17319833,176.2,176.15,11.17319833]
[1730344397825,11.17319833,176.2,176.16,5.6766]
[1730344398014,11.17319833,176.19,176.16,5.6766]
[1730344398836,10.03629228,176.19,176.16,5.6766]
[1730344399525,10.03629228,176.19,176.15,19.8693]
[1730344399725,10.03629228,176.2,176.15,29.90559228]
[1730344400838,10.03629228,176.2,176.14,10.03629228]
[1730344402840,75.6747,176.22,176.14,10.03629228]
[1730344402841,10.03629228,176.19,176.15,19.8693]
[1730344405331,10.03629228,176.19,176.13,10.03629228]
[1730344405645,10.03629228,176.2,176.14,10.03629228]
[1730344405821,10.03629228,176.19,176.14,10.03629228]
[1730344406022,10.03629228,176.19,176.13,10.03629228]
[1730344406223,10.03629228,176.19,176.14,10.03629228]
[1730344406846,10.03629228,176.19,176.14,19.8705]
[1730344407830,10.03629228,176.19,176.14,29.90679228]
[1730344410336,10.03629228,176.19,176.12,28.3897]
[1730344410337,10.03629228,176.19,176.13,10.03629228]
[1730344411150,10.03629228,176.15,176.09,48.2706]
[1730344411449,10.03629228,176.15,176.1,10.03629228]
[1730344411648,10.03629228,176.18,176.12,10.03629228]
[1730344412750,10.03629228,176.18,176.13,29.90789228]
[1730344413150,5.6754,176.2,176.13,29.90789228]
[1730344413458,10.03629228,176.19,176.14,10.03629228]
[1730344413949,10.03629228,176.18,176.13,29.90789228]
[1730344417529,75.6752,176.21,176.14,10.03629228]
[1730344417530,10.03629228,176.19,176.14,10.03629228]
[1730344417734,10.03629228,176.2,176.14,10.03629228]
[1730344418854,75.6752,176.21,176.15,19.8693]
[1730344418855,10.03629228,176.18,176.15,19.8693]
[1730344419356,10.03629228,176.19,176.15,19.8693]
[1730344420850,10.03629228,176.19,176.09,28.3945]
[1730344420851,10.03629228,176.18,176.13,10.03629228]
[1730344422248,10.03629228,176.18,176.14,19.8705]
[1730344423485,75.6752,176.21,176.14,19.8705]
[1730344423636,10.03629228,176.18,176.14,19.8705]
[1730344424635,10.03629228,176.17,176.12,10.03629228]
[1730344425639,10.03629228,176.17,176.13,19.8716]
[1730344425849,10.03629228,176.18,176.13,19.8716]
[1730344426055,10.03629228,176.18,176.13,29.90789228]
[1730344427259,10.03629228,176.18,176.12,10.03629228]
[1730344428458,70.0,176.17,176.13,19.8716]
[1730344428661,10.03629228,176.16,176.13,19.8716]
[1730344428871,10.03629228,176.15,176.13,14.194]
[1730344429248,10.03629228,176.16,176.13,14.194]
[1730344429438,10.03629228,176.16,176.13,19.8716]
[1730344430357,10.03629228,176.16,176.13,14.194]
[1730344431271,10.03629228,176.17,176.13,14.194]
[1730344431452,10.03629228,176.19,176.14,10.03629228]
[1730344431654,5.675,176.21,176.14,10.03629228]
[1730344431854,10.03629228,176.2,176.14,10.03629228]
[1730344432381,10.03629228,176.19,176.14,10.03629228]
[1730344432555,10.03629228,176.19,176.15,19.8693]
[1730344432759,10.03629228,176.16,176.15,19.8693]
[1730344433449,10.03629228,176.16,176.12,19.8727]
[1730344433649,10.03629228,176.17,176.12,19.8727]
[1730344433872,10.03629228,176.17,176.12,29.90899228]
[1730344434773,10.03629228,176.19,176.14,10.03629228]
[1730344435371,10.03629228,176.18,176.13,10.03629228]
[1730344435857,10.03629228,176.18,176.14,19.8705]
[1730344439256,10.03629228,176.19,176.14,10.03629228]
[1730344439772,28.27745552,176.23,176.15,10.03629228]
[1730344439773,10.03629228,176.2,176.15,10.03629228]
[1730344440856,10.03629228,176.2,176.16,5.6766]
[1730344442467,10.03629228,176.2,176.16,14.1916]
[1730344445082,10.03629228,176.19,176.11,48.2651]
[1730344445380,10.03629228,176.18,176.12,10.03629228]
[1730344445964,10.03629228,176.18,176.13,10.03629228]
[1730344447082,10.03743662,176.18,176.13,10.03743662]
[1730344447284,10.03743662,176.18,176.14,19.8705]
[1730344447479,10.03743662,176.2,176.14,58.29443662]
[1730344447778,10.03743662,176.2,176.15,10.03743662]
[1730344448080,10.03743662,176.21,176.15,10.03743662]
[1730344448659,10.03743662,176.21,176.16,19.8682]
[1730344449075,10.03743662,176.21,176.16,29.90563662]
[1730344449581,103.95185552,176.23,176.17,10.03743662]
[1730344449582,38.31489214,176.23,176.17,10.03743662]
[1730344450264,10.03743662,176.22,176.17,10.03743662]
[1730344450581,10.03743662,176.22,176.18,19.866]
[1730344451663,28.27745552,176.23,176.18,19.866]
[1730344451865,10.03743662,176.22,176.18,19.866]
[1730344453779,10.03354036,176.22,176.16,10.03354036]
[1730344453987,10.03354036,176.21,176.16,10.03354036]
[1730344454688,10.03354036,176.2,176.15,30.03354036]
[1730344454866,10.03354036,176.2,176.16,19.8682]
[1730344457264,10.03354036,176.19,176.16,19.8682]
[1730344458458,10.03354036,176.19,176.16,14.1916]
[1730344459869,10.03354036,176.19,176.14,10.03354036]
[1730344461902,10.03354036,176.19,176.15,19.8693]
[1730344462384,10.03354036,176.18,176.15,19.8693]
[1730344463501,10.03354036,176.18,176.15,14.1924]
[1730344464971,10.03354036,176.16,176.15,14.1924]
[1730344465999,10.03354036,176.17,176.12,29.90624036]
[1730344472699,40.13416144,176.22,176.11,28.3913]
[1730344472700,70.0,176.21,176.14,10.03354036]
[1730344472879,10.03354036,176.17,176.12,10.03354036]
[1730344475298,10.03354036,176.17,176.13,19.8716]
[1730344482010,10.03354036,176.15,176.13,19.8716]
[1730344482507,10.03354036,176.16,176.13,19.8716]
[1730344483004,10.03354036,176.16,176.13,14.194]
[1730344485085,10.03354036,176.14,176.08,30.03354036]
[1730344485711,10.03354036,176.13,176.08,10.03354036]
[1730344486081,10.03354036,176.13,176.09,19.8761]
[1730344487402,10.03354036,176.14,176.09,19.8761]
[1730344488685,10.03354036,176.14,176.09,24.23074036]
[1730344489701,10.03354036,176.13,176.09,19.8761]
[1730344492923,10.03354036,176.14,176.09,29.90964036]
[1730344495404,10.03354036,176.11,176.07,28.3977]
[1730344496419,10.03354036,176.12,176.07,58.30954036]
[1730344498528,70.0,176.14,176.07,58.30954036]
[1730344498529,10.03354036,176.13,176.08,10.03354036]
[1730344501412,81.7786,176.17,176.09,19.8761]
[1730344501615,10.03354036,176.15,176.1,10.03354036]
[1730344501913,10.03354036,176.16,176.1,10.03354036]
[1730344502805,10.03354036,176.16,176.11,19.8738]
[1730344503409,76.102,176.17,176.11,19.8738]
[1730344503616,10.03354036,176.14,176.11,19.8738]
[1730344505019,10.03354036,176.14,176.11,14.1956]
[1730344509718,10.03354036,176.14,176.09,38.42804036]
[1730344510727,10.03354036,176.14,176.09,48.2706]
[1730344511525,10.03354036,176.12,176.09,19.8761]
[1730344511827,10.03354036,176.11,176.09,19.8761]
[1730344512915,10.03354036,176.11,176.09,14.1972]
[1730344517413,10.03354036,176.12,176.07,10.03354036]
[1730344517622,10.03354036,176.13,176.07,10.03354036]
[1730344518028,10.03354036,176.12,176.06,38.43184036]
[1730344518812,10.03354036,176.11,176.06,38.43184036]
[1730344519010,10.03354036,176.12,176.06,58.31134036]
[1730344519211,10.03354036,176.12,176.07,10.03354036]
[1730344521436,10.03354036,176.12,176.08,19.8772]
[1730344522939,10.03354036,176.12,176.06,38.43184036]
[1730344523333,10.03354036,176.11,176.06,28.3983]
[1730344524732,10.03354036,176.11,176.06,48.2778]
[1730344525930,10.03354036,176.1,176.06,19.8795]
[1730344526136,10.03354036,176.09,176.06,19.8795]
[1730344526635,10.03354036,176.08,176.06,19.8795]
[1730344526938,10.03354036,176.07,176.02,19.8835]
[1730344527139,10.03354036,176.06,176.02,19.8835]
[1730344527521,10.03354036,176.05,176.02,19.8835]
[1730344528029,10.03354036,176.05,176.02,14.2024]
[1730344529235,10.03354036,176.06,176.02,19.8835]
[1730344530035,10.03354036,176.09,176.04,10.03354036]
[1730344530356,10.03354036,176.08,176.03,10.03354036]
[1730344531115,10.03354036,176.08,176.03,19.8829]
[1730344531927,5.6789,176.09,176.03,19.8829]
[1730344531928,10.03354036,176.06,176.03,19.8829]
[1730344534544,10.03354036,176.05,175.99,68.2981]
[1730344534850,10.03354036,176.05,176.0,10.03354036]
[1730344535227,10.03354036,176.06,176.01,10.03354036]
[1730344536428,0.12549,176.1,176.04,10.03354036]
[1730344536429,10.03354036,176.09,176.04,10.03354036]
[1730344536627,10.03354036,176.07,176.02,10.03354036]
[1730344537019,10.03354036,176.06,176.01,10.03354036]
[1730344537646,10.03354036,176.06,176.02,19.884]
[1730344538228,10.03354036,176.07,176.02,29.91754036]
[1730344539944,10.03354036,176.08,176.03,10.03354036]
[1730344540130,10.03354036,176.07,176.02,24.23644036]
[1730344540531,5.6789,176.09,176.02,24.23644036]
[1730344540737,10.03354036,176.08,176.03,10.03354036]
[1730344541247,10.03354036,176.08,176.04,19.8818]
[1730344542037,10.03354036,176.07,176.04,19.8818]
[1730344542752,10.03354036,176.07,176.04,14.2013]
[1730344544149,10.03354036,176.08,176.04,14.2013]
[1730344545630,10.03354036,176.09,176.04,24.23484036]
[1730344545840,82.1395,176.12,176.06,10.03354036]
[1730344546052,6.4616,176.12,176.06,10.03354036]
[1730344546345,26.65314036,176.13,176.08,10.03354036]
[1730344546954,16.6196,176.13,176.08,10.03354036]
[1730344547129,26.65314036,176.13,176.08,10.03354036]
[1730344547333,6.0916,176.16,176.1,10.03354036]
[1730344547549,10.03354036,176.18,176.12,10.03354036]
[1730344548563,10.03354036,176.17,176.13,19.8716]
[1730344549548,10.03354036,176.16,176.13,14.194]
[1730344550051,10.03354036,176.17,176.13,14.194]
[1730344550759,10.03354036,176.17,176.13,19.8716]
[1730344551441,10.03354036,176.18,176.13,29.90514036]
[1730344553552,10.03354036,176.16,176.13,19.8716]
[1730344553739,10.03354036,176.15,176.13,19.8716]
[1730344554136,10.03354036,176.16,176.13,19.8716]
[1730344554440,10.03354036,176.15,176.13,19.8716]
[1730344555836,10.03354036,176.15,176.13,14.194]
[1730344556560,10.03354036,176.14,176.13,14.194]
[1730344557359,10.03354036,176.15,176.13,14.194]
[1730344557531,10.03354036,176.16,176.13,14.194]
[1730344558752,10.03354036,176.15,176.13,14.194]
[1730344562851,10.03354036,176.14,176.11,5.6782]
[1730344563537,10.03354036,176.13,176.11,19.8738]
[1730344564161,10.03354036,176.14,176.11,19.8738]
[1730344564470,10.03354036,176.14,176.09,10.03354036]
[1730344564973,10.03354036,176.15,176.1,10.03354036]
[1730344565263,10.03354036,176.16,176.11,10.03354036]
[1730344565464,10.03354036,176.17,176.11,10.03354036]
[1730344566346,10.03354036,176.16,176.12,19.8727]
[1730344566751,10.03354036,176.14,176.12,19.8727]
[1730344568172,10.03354036,176.13,176.09,19.8761]
[1730344568349,10.03354036,176.12,176.09,19.8761]
[1730344569242,10.03354036,176.11,176.09,14.1972]
[1730344570051,10.03354036,176.12,176.09,14.1972]
[1730344570464,10.03354036,176.13,176.09,14.1972]
[1730344570669,10.03354036,176.14,176.09,24.23074036]
[1730344570964,16.23924036,176.15,176.1,10.03354036]
[1730344571174,26.39104036,176.16,176.1,10.03354036]
[1730344572055,10.03354036,176.15,176.1,10.03354036]
[1730344572769,10.03354036,176.16,176.11,29.90734036]
[1730344572974,10.03354036,176.17,176.12,10.03354036]
[1730344573852,10.03354036,176.18,176.13,10.03354036]
[1730344574051,10.03354036,176.18,176.14,19.8705]
[1730344574655,15.5078,176.19,176.14,29.90404036]
[1730344574656,10.03354036,176.19,176.14,29.90404036]
[1730344574954,10.03354036,176.18,176.14,19.8705]
[1730344575270,10.03354036,176.17,176.14,19.8705]
[1730344575850,10.03354036,176.15,176.14,14.1932]
[1730344576274,10.03354036,176.16,176.14,14.1932]
[1730344576662,10.03354036,176.15,176.14,14.1932]
[1730344578359,10.03354036,176.15,176.1,10.03354036]
[1730344578562,10.03354036,176.14,176.11,14.1956]
[1730344578872,10.03354036,176.13,176.11,14.1956]
[1730344579261,10.03354036,176.12,176.11,14.1956]
[1730344579672,10.03354036,176.12,176.09,5.6789]
[1730344579856,10.03354036,176.11,176.08,5.6792]
[1730344580871,10.03354036,176.12,176.07,14.198]
[1730344581964,10.03354036,176.12,176.07,10.03354036]
[1730344582162,80.03354036,176.13,176.07,10.03354036]
[1730344582372,10.03354036,176.13,176.07,10.03354036]
[1730344583369,10.03354036,176.13,176.08,19.8772]
[1730344583680,10.03354036,176.1,176.08,19.8772]
[1730344583874,10.03354036,176.11,176.08,19.8772]
[1730344584383,80.15903036,176.12,176.08,19.8772]
[1730344584879,80.15903036,176.12,176.08,14.198]
[1730344585767,10.03354036,176.11,176.08,14.198]
[1730344586088,10.03354036,176.11,176.05,10.03354036]
[1730344586589,10.03354036,176.11,176.06,10.03354036]
[1730344587388,10.03354036,176.11,176.07,19.8783]
[1730344591168,10.03354036,176.11,176.05,10.03354036]
[1730344591367,10.03354036,176.09,176.03,10.03354036]
[1730344592593,10.03354036,176.09,176.04,19.8818]
[1730344593272,10.03354036,176.08,176.04,19.8818]
[1730344595598,10.03354036,176.09,176.04,19.8818]
[1730344595899,10.03354036,176.09,176.04,24.23484036]
[1730344596188,10.03354036,176.09,176.04,14.2013]
[1730344597786,10.03354036,176.09,176.04,19.8818]
[1730344598196,10.03354036,176.08,176.04,19.8818]
[1730344600103,10.03354036,176.06,176.04,14.2013]
[1730344601194,10.03354036,176.06,176.04,19.8818]
[1730344601972,10.03354036,176.05,176.01,19.8851]
[1730344602176,10.03354036,176.04,176.01,19.8851]
[1730344603074,10.03354036,176.04,176.01,14.2037]
[1730344604299,10.03354036,176.04,175.99,10.03354036]
[1730344605281,10.03354036,176.04,175.98,29.92204036]
[1730344608204,10.03354036,176.03,175.98,29.92204036]
[1730344608379,10.03354036,176.03,175.98,19.8885]
[1730344608575,10.03354036,176.01,175.98,19.8885]
[1730344609100,10.03354036,176.01,175.98,14.2061]
[1730344609101,10.03354036,176.0,175.98,14.2061]
[1730344609312,10.03354036,175.99,175.98,14.2061]
[1730344610301,10.03354036,175.99,175.94,10.03354036]
[1730344610478,10.03354036,175.99,175.95,19.8919]
[1730344613413,70.0,176.01,175.96,10.03354036]
[1730344613703,80.03354036,176.01,175.96,10.03354036]
[1730344614992,10.15903036,176.0,175.95,24.24204036]
[1730344615497,10.03354036,175.98,175.95,19.8919]
[1730344616499,10.03354036,175.98,175.95,14.2085]
[1730344616707,80.03354036,175.99,175.95,14.2085]
[1730344617505,10.03354036,175.98,175.95,14.2085]
[1730344617805,80.03354036,175.99,175.95,14.2085]
[1730344618891,80.03354036,175.99,175.95,19.8919]
[1730344620283,10.03354036,176.02,175.97,10.03354036]
[1730344620782,10.03354036,176.02,175.96,10.03354036]
[1730344621001,10.03354036,176.02,175.97,19.8896]
[1730344621394,10.03354036,176.01,175.97,19.8896]
[1730344621980,10.03354036,176.0,175.97,19.8896]
[1730344622183,10.03354036,175.99,175.97,19.8896]
[1730344623302,10.15903036,175.98,175.94,14.2092]
[1730344623487,10.03354036,175.96,175.94,19.8929]
[1730344623804,10.03354036,175.96,175.94,14.2092]
[1730344624007,10.03354036,175.95,175.91,19.8965]
[1730344624896,10.03354036,175.96,175.91,29.93004036]
[1730344625296,86.46394036,175.97,175.91,29.93004036]
[1730344626891,86.46394036,175.97,175.92,10.03354036]
[1730344628208,86.46394036,175.97,175.93,19.8941]
[1730344628407,76.4304,175.97,175.93,29.92764036]
[1730344629101,86.46394036,175.97,175.93,19.8941]
[1730344629306,10.03354036,175.96,175.91,10.03354036]
[1730344631015,10.03354036,175.96,175.92,19.8954]
[1730344632410,76.4304,175.97,175.92,10.03354036]
[1730344632411,86.46394036,175.97,175.92,10.03354036]
[1730344634298,86.46394036,175.97,175.93,19.8941]
[1730344634797,10.03354036,175.96,175.93,19.8941]
[1730344635314,10.03354036,175.96,175.93,14.2101]
[1730344635616,86.46394036,175.97,175.93,14.2101]
[1730344636514,76.4304,175.97,175.93,14.2101]
[1730344636707,76.4304,175.97,175.93,19.8941]
[1730344636914,76.4304,175.97,175.93,29.92764036]
[1730344637094,10.15903036,175.98,175.93,29.92764036]
[1730344637095,15.8086,175.99,175.95,10.03354036]
[1730344637606,0.12549,176.0,175.95,10.03354036]
[1730344638801,0.12549,176.0,175.96,19.8908]
[1730344639718,80.03354036,175.97,175.93,14.2101]
[1730344640018,80.03354036,175.97,175.93,19.8941]
[1730344643306,10.03354036,175.96,175.91,10.03354036]
[1730344643631,85.71654036,175.97,175.92,10.03354036]
[1730344643821,80.03354036,175.97,175.91,10.03354036]
[1730344643997,10.03354036,175.96,175.91,10.03354036]
[1730344644197,10.03354036,175.95,175.9,10.03354036]
[1730344645729,80.03354036,175.94,175.91,14.2118]
[1730344645927,10.03354036,175.92,175.9,5.6847]
[1730344647205,10.03354036,175.92,175.88,19.8996]
[1730344648529,10.03354036,175.93,175.88,24.24754036]
[1730344649223,10.03354036,175.92,175.88,14.214]
[1730344649404,10.03354036,175.93,175.88,24.24754036]
[1730344649604,70.0,175.94,175.9,15.71854036]
[1730344649808,70.0,175.94,175.9,29.93114036]
[1730344650508,0.12549,175.95,175.91,10.03354036]
[1730344650808,25.59724036,175.97,175.92,10.03354036]
[1730344651023,0.12549,175.96,175.92,10.03354036]
[1730344651903,80.03354036,175.98,175.93,5.684]
[1730344652216,0.12549,175.97,175.93,5.684]
[1730344653232,0.12549,175.97,175.93,19.8941]
[1730344653431,0.12549,175.97,175.93,29.92764036]
[1730344654009,10.15903036,175.97,175.93,19.8941]
[1730344654211,10.15903036,175.97,175.93,14.2101]
[1730344654429,10.03354036,175.96,175.93,19.8941]
[1730344656532,10.15903036,175.95,175.93,14.2101]
[1730344657125,10.15903036,175.95,175.89,10.03354036]
[1730344657322,80.03354036,175.94,175.9,19.8975]
[1730344657717,10.03354036,175.93,175.9,19.8975]
[1730344659031,10.03354036,175.93,175.9,14.2125]
[1730344660735,70.0,175.92,175.9,14.2125]
[1730344660918,80.03354036,175.92,175.9,14.2125]
[1730344662929,10.03354036,175.91,175.9,14.2125]
[1730344663317,70.12549,175.9,175.87,5.6859]
[1730344663646,80.15903036,175.9,175.87,5.6859]
[1730344664030,10.03354036,175.89,175.86,20.0008624]
[1730344665112,80.15903036,175.9,175.86,20.0008624]
[1730344665516,70.12549,175.9,175.87,10.03354036]
[1730344666032,70.0,175.92,175.88,10.03354036]
[1730344666927,10.15903036,175.91,175.86,30.03440276]
[1730344667129,80.03354036,175.88,175.86,0.0989624]